fUST/lending_fUST_20240303
["ID","MTS","AMOUNT","RATE_DAILY","PERIOD"]
[316298656,1709428241383,-500.0,0.0002359,2]
[316298657,1709428241392,-500.0,0.0002359,2]
[316298658,1709428241401,-500.0,0.0002359,2]
[316298659,1709428241411,-500.0,0.0002359,2]
[316298660,1709428241420,-500.0,0.0002359,2]
[316298661,1709428241430,-513.27120478,0.0002359,2]
[316298662,1709428241440,-500.0,0.0002359,2]
[316298663,1709428241450,-500.0,0.0002359,2]
[316298664,1709428241460,-500.0,0.0002359,2]
[316298665,1709428241469,-500.0,0.0002359,2]
[316298666,1709428241480,-500.0,0.0002359,2]
[316298667,1709428241490,-500.0,0.0002359,2]
[316298668,1709428241499,-500.0,0.0002359,2]
[316298669,1709428241509,-500.0,0.0002359,2]
[316298670,1709428241518,-500.0,0.0002359,2]
[316298671,1709428241527,-500.0,0.0002359,2]
[316298672,1709428241536,-500.0,0.0002359,2]
[316298673,1709428241658,-500.0,0.0002359,2]
[316298674,1709428241668,-500.0,0.0002359,2]
[316298675,1709428241678,-500.0,0.0002359,2]
[316298676,1709428241688,-155.87924966,0.0002359,2]
[316298677,1709428241697,-500.0,0.0002359,2]
[316298678,1709428241706,-500.0,0.0002359,2]
[316298679,1709428241715,-500.0,0.0002359,2]
[316298680,1709428241724,-500.0,0.0002359,2]
[316298681,1709428241734,-500.0,0.0002359,2]
[316298682,1709428241743,-500.0,0.0002359,2]
[316298683,1709428241752,-500.0,0.0002359,2]
[316298684,1709428241761,-500.0,0.0002359,2]
[316298685,1709428241770,-500.0,0.0002359,2]
[316298686,1709428241779,-292.77414102,0.0002359,2]
[316298687,1709428241788,-500.0,0.0002359,2]
[316298688,1709428241797,-500.0,0.0002359,2]
[316298689,1709428241807,-500.0,0.0002359,2]
[316298690,1709428241817,-295.72,0.0002359,2]
[316298691,1709428241827,-500.0,0.0002359,2]
[316298692,1709428241839,-500.0,0.0002359,2]
[316298693,1709428241849,-213.93727863,0.0002359,2]
[316298694,1709428241858,-500.0,0.0002359,2]
[316298695,1709428241868,-500.0,0.0002359,2]
[316298696,1709428241878,-500.0,0.0002359,2]
[316298697,1709428241887,-500.0,0.0002359,2]
[316298698,1709428241896,-500.0,0.0002359,2]
[316298699,1709428241906,-500.0,0.0002359,2]
[316298700,1709428241915,-500.0,0.0002359,2]
[316298701,1709428241925,-500.0,0.0002359,2]
[316298702,1709428241934,-500.0,0.0002359,2]
[316298703,1709428241943,-500.0,0.0002359,2]
[316298704,1709428241952,-500.0,0.0002359,2]
[316298705,1709428241960,-500.0,0.0002359,2]
[316298706,1709428241970,-765.97,0.0002359,2]
[316298707,1709428241980,-765.97,0.0002359,2]
[316298708,1709428241989,-217.40320681,0.0002359,2]
[316298709,1709428242003,-548.56679319,0.0002359,2]
[316298710,1709428242012,-500.0,0.0002359,2]
[316298711,1709428242021,-500.0,0.0002359,2]
[316298712,1709428242030,-500.0,0.0002359,2]
[316298713,1709428242039,-49.987297,0.0002359,2]
[316298714,1709428242050,-450.012703,0.0002359,2]
[316298715,1709428242059,-500.0,0.0002359,2]
[316298716,1709428242068,-500.0,0.0002359,2]
[316298717,1709428242077,-500.0,0.0002359,2]
[316298718,1709428242086,-500.0,0.0002359,2]
[316298719,1709428242095,-500.0,0.0002359,2]
[316298720,1709428242104,-500.0,0.0002359,2]
[316298721,1709428242113,-500.0,0.0002359,2]
[316298722,1709428242122,-500.0,0.0002359,2]
[316298723,1709428242132,-504.74955839,0.0002359,2]
[316298724,1709428242141,-500.0,0.0002359,2]
[316298725,1709428242150,-500.0,0.0002359,2]
[316298726,1709428242160,-779.22,0.0002359,2]
[316298727,1709428242169,-500.0,0.0002359,2]
[316298728,1709428242179,-500.0,0.0002359,2]
[316298729,1709428242188,-500.0,0.0002359,2]
[316298730,1709428242198,-500.0,0.0002359,2]
[316298731,1709428242207,-500.0,0.0002359,2]
[316298732,1709428242217,-500.0,0.0002359,2]
[316298733,1709428242234,-500.0,0.0002359,2]
[316298734,1709428242243,-500.0,0.0002359,2]
[316298735,1709428242252,-500.0,0.0002359,2]
[316298736,1709428242262,-500.0,0.0002359,2]
[316298737,1709428242271,-500.0,0.0002359,2]
[316298738,1709428242280,-500.0,0.0002359,2]
[316298739,1709428242289,-500.0,0.0002359,2]
[316298740,1709428242298,-500.0,0.0002359,2]
[316298741,1709428242307,-500.0,0.0002359,2]
[316298742,1709428242317,-500.0,0.0002359,2]
[316298743,1709428242326,-500.78058774,0.0002359,2]
[316298744,1709428242335,-500.0,0.0002359,2]
[316298745,1709428242345,-422.94126363,0.0002359,2]
[316298746,1709428242355,-800.41,0.0002359,2]
[316298747,1709428242364,-500.0,0.00023591,2]
[316298748,1709428242374,-500.0,0.00023591,2]
[316298749,1709428242384,-500.0,0.00023591,2]
[316298750,1709428242394,-152.48583566,0.00023591,2]
[316298751,1709428242403,-625.7,0.00023591,2]
[316298753,1709428242412,-500.0,0.00023591,2]
[316298754,1709428242422,-367.64,0.00023591,2]
[316298755,1709428242431,-500.0,0.00023591,2]
[316298756,1709428242439,-500.0,0.00023591,2]
[316298757,1709428242457,-500.0,0.00023591,2]
[316298758,1709428242468,-500.0,0.00023591,2]
[316298759,1709428242477,-500.0,0.00023591,2]
[316298760,1709428242489,-500.0,0.00023591,2]
[316298761,1709428242499,-500.0,0.00023591,2]
[316298762,1709428242509,-500.0,0.00023591,2]
[316298763,1709428242519,-574.67052742,0.00023591,2]
[316298764,1709428242529,-500.0,0.00023591,2]
[316298765,1709428242539,-500.0,0.00023591,2]
[316298766,1709428242548,-500.0,0.00023591,2]
[316298767,1709428242557,-500.0,0.00023591,2]
[316298768,1709428242567,-500.0,0.00023591,2]
[316298769,1709428242576,-500.0,0.00023591,2]
[316298770,1709428242585,-765.97,0.00023591,2]
[316298771,1709428242595,-765.97,0.00023591,2]
[316298772,1709428242605,-765.97,0.00023591,2]
[316298773,1709428242615,-765.97,0.00023591,2]
[316298774,1709428242624,-765.97,0.00023591,2]
[316298775,1709428242634,-765.97,0.00023591,2]
[316298776,1709428242643,-500.0,0.00023591,2]
[316298778,1709428242653,-500.0,0.00023591,2]
[316298779,1709428242663,-500.0,0.00023591,2]
[316298780,1709428242673,-500.0,0.00023591,2]
[316298781,1709428242682,-500.0,0.00023591,2]
[316298782,1709428242691,-500.0,0.00023591,2]
[316298783,1709428242701,-199.4292859,0.000236,2]
[316298785,1709428242711,-153.0,0.000236,2]
[316298787,1709428242720,-200.7312975,0.000236,2]
[316298789,1709428242730,-265.8771798,0.000236,2]
[316298790,1709428242740,-153.0,0.000236,2]
[316298792,1709428242750,-153.0,0.000236,2]
[316298793,1709428242760,-200.7312975,0.000236,2]
[316298794,1709428242769,-153.0,0.000236,2]
[316298795,1709428242778,-153.0,0.000236,2]
[316298796,1709428242789,-200.492924,0.000236,2]
[316298797,1709428242798,-153.0,0.000236,2]
[316298798,1709428242808,-153.0,0.000236,2]
[316298799,1709428242821,-153.0,0.000236,2]
[316298800,1709428242830,-594.46,0.00023688,2]
[316298801,1709428242840,-500.0,0.00023688,2]
[316298802,1709428242849,-500.0,0.00023689,2]
[316298803,1709428242859,-500.0,0.00023689,2]
[316298804,1709428242868,-500.0,0.00023689,2]
[316298805,1709428242877,-500.0,0.00023689,2]
[316298806,1709428242886,-500.0,0.00023689,2]
[316298807,1709428242897,-765.97,0.00023689,2]
[316298808,1709428242906,-765.97,0.00023689,2]
[316298810,1709428242917,-500.0,0.00023689,2]
[316298812,1709428242926,-341.42476155,0.00023689,2]
[316298814,1709428242935,-500.0,0.00023689,2]
[316298816,1709428242945,-500.0,0.00023689,2]
[316298817,1709428242953,-500.0,0.00023689,2]
[316298819,1709428242963,-779.22,0.00023689,2]
[316298820,1709428242972,-584.14,0.00023689,2]
[316298821,1709428242983,-646.54,0.00023689,2]
[316298822,1709428242992,-500.0,0.00023689,2]
[316298823,1709428243001,-501.44,0.00023689,2]
[316298824,1709428243010,-500.0,0.00023689,2]
[316298825,1709428243019,-328.64,0.00023689,2]
[316298826,1709428243029,-500.0,0.00023689,2]
[316298828,1709428243038,-420.32,0.00023689,2]
[316298829,1709428243048,-154.43,0.00023689,2]
[316298831,1709428243058,-500.0,0.00023689,2]
[316298833,1709428243067,-546.71,0.00023689,2]
[316298834,1709428243076,-800.41,0.00023689,2]
[316298835,1709428243085,-500.0,0.0002369,2]
[316298836,1709428243096,-500.0,0.0002369,2]
[316298837,1709428243105,-765.97,0.0002369,2]
[316298838,1709428243114,-153.0,0.000237,2]
[316298839,1709428243124,-153.0,0.000237,2]
[316298840,1709428243133,-200.7312975,0.000237,2]
[316298841,1709428243143,-153.0,0.000237,2]
[316298842,1709428243152,-153.0,0.000237,2]
[316298843,1709428243162,-153.0,0.000237,2]
[316298844,1709428243172,-153.0,0.000237,2]
[316298845,1709428243181,-200.7312975,0.000237,2]
[316298846,1709428243191,-153.0,0.000237,2]
[316298847,1709428243200,-153.0,0.000237,2]
[316298848,1709428243210,-153.0,0.000237,2]
[316298849,1709428243219,-200.7312975,0.000237,2]
[316298850,1709428243229,-153.0,0.000237,2]
[316298851,1709428243240,-200.7312975,0.000237,2]
[316298852,1709428243249,-153.0,0.000237,2]
[316298853,1709428243261,-153.0,0.000237,2]
[316298854,1709428243270,-1000.0,0.00023726,2]
[316298855,1709428243280,-500.0,0.00023788,2]
[316298856,1709428243289,-196.57522488,0.00023788,2]
[316298857,1709428243298,-765.97,0.00023788,2]
[316298858,1709428243307,-423.28339954,0.00023799,2]
[316298859,1709428243317,-423.28339951,0.00023824,2]
[316298860,1709428243326,-423.28339951,0.0002385,2]
[316298861,1709428243336,-423.28339951,0.00023875,2]
[316298862,1709428243345,-151.0,0.00023899,2]
[316298863,1709428243355,-151.0,0.00023899,2]
[316298864,1709428243364,-151.0,0.00023899,2]
[316298865,1709428243374,-151.0,0.00023899,2]
[316298866,1709428243383,-151.0,0.00023899,2]
[316298867,1709428243393,-151.0,0.00023899,2]
[316298868,1709428243402,-151.0,0.00023899,2]
[316298869,1709428243412,-151.0,0.00023899,2]
[316298870,1709428243422,-500.0,0.00023899,2]
[316298871,1709428243431,-500.0,0.00023899,2]
[316298872,1709428243440,-500.0,0.00023899,2]
[316298873,1709428243450,-500.0,0.00023899,2]
[316298874,1709428243460,-478.82,0.00023899,2]
[316298875,1709428243469,-500.0,0.00023899,2]
[316298876,1709428243479,-500.0,0.00023899,2]
[316298877,1709428243489,-500.0,0.00023899,2]
[316298878,1709428243499,-500.0,0.00023899,2]
[316298879,1709428243508,-500.0,0.00023899,2]
[316298880,1709428243517,-416.98,0.00023899,2]
[316298881,1709428243527,-500.0,0.00023899,2]
[316298882,1709428243536,-500.0,0.00023899,2]
[316298883,1709428243545,-500.0,0.00023899,2]
[316298884,1709428243554,-500.0,0.00023899,2]
[316298885,1709428243563,-500.0,0.00023899,2]
[316298886,1709428243573,-500.0,0.00023899,2]
[316298887,1709428243582,-500.0,0.00023899,2]
[316298888,1709428243592,-500.0,0.00023899,2]
[316298889,1709428243601,-500.0,0.00023899,2]
[316298890,1709428243611,-500.0,0.00023899,2]
[316298891,1709428243620,-500.0,0.00023899,2]
[316298892,1709428243629,-500.0,0.00023899,2]
[316298893,1709428243638,-500.0,0.00023899,2]
[316298894,1709428243647,-500.0,0.00023899,2]
[316298895,1709428243656,-500.0,0.00023899,2]
[316298896,1709428243665,-500.0,0.00023899,2]
[316298897,1709428243674,-500.0,0.00023899,2]
[316298898,1709428243683,-500.0,0.00023899,2]
[316298899,1709428243693,-779.22,0.00023899,2]
[316298900,1709428243702,-779.22,0.00023899,2]
[316298901,1709428243711,-779.22,0.00023899,2]
[316298902,1709428243721,-779.22,0.00023899,2]
[316298903,1709428243730,-779.22,0.00023899,2]
[316298904,1709428243740,-779.22,0.00023899,2]
[316298905,1709428243749,-500.0,0.00023899,2]
[316298906,1709428243759,-500.0,0.00023899,2]
[316298907,1709428243768,-500.0,0.00023899,2]
[316298908,1709428243777,-500.0,0.00023899,2]
[316298909,1709428243786,-500.0,0.00023899,2]
[316298910,1709428243795,-500.0,0.00023899,2]
[316298911,1709428243805,-500.0,0.00023899,2]
[316298912,1709428243815,-500.0,0.00023899,2]
[316298913,1709428243824,-500.0,0.00023899,2]
[316298914,1709428243837,-500.0,0.00023899,2]
[316298915,1709428243846,-500.0,0.00023899,2]
[316298916,1709428243856,-500.0,0.00023899,2]
[316298917,1709428243865,-500.0,0.00023899,2]
[316298918,1709428243875,-362.92,0.00023899,2]
[316298919,1709428243884,-500.0,0.00023899,2]
[316298920,1709428243893,-500.0,0.00023899,2]
[316298921,1709428243902,-500.0,0.00023899,2]
[316298922,1709428243913,-500.0,0.00023899,2]
[316298923,1709428243922,-500.0,0.00023899,2]
[316298924,1709428243932,-500.0,0.00023899,2]
[316298925,1709428243941,-800.41,0.00023899,2]
[316298926,1709428243949,-800.41,0.00023899,2]
[316298927,1709428243958,-800.41,0.00023899,2]
[316298928,1709428243967,-800.41,0.00023899,2]
[316298929,1709428243976,-800.41,0.00023899,2]
[316298930,1709428243987,-800.41,0.00023899,2]
[316298931,1709428243997,-4700.05876746,0.000239,2]
[316298932,1709428244148,-4727.70418331,0.000239,2]
[316298933,1709428244161,-10331.94508805,0.000239,2]
[316298934,1709428244242,-958.1504349,0.000239,2]
[316298935,1709428244254,-942.24230358,0.000239,2]
[316298942,1709428247375,-29342.00069311,0.000239,2]
[316298945,1709428247386,-24375.03446,0.000239,2]
[316298969,1709429247983,1212.38793747,0.0003,120]
[316298970,1709429289276,500.0,0.0003,120]
[316298971,1709429295163,500.0,0.0003,120]
[316299149,1709429442785,-155.74574271,0.00021798,2]
[316299152,1709429442795,-983.92172738,0.00021799,2]
[316299156,1709429442807,-608.64671047,0.00021799,2]
[316299158,1709429442817,-176.929972,0.00022143,2]
[316299160,1709429442827,-224.85750036,0.0002252,2]
[316299162,1709429442837,-3742.56539972,0.0002281,3]
[316299166,1709429442848,-795.29514744,0.0002281,3]
[316299170,1709429442858,-155.0,0.00022898,2]
[316299173,1709429442868,-500.0,0.00023588,2]
[316299176,1709429442879,-500.0,0.00023588,2]
[316299178,1709429442889,-194.99343261,0.00023588,2]
[316299181,1709429442899,-500.0,0.00023588,2]
[316299184,1709429442909,-500.0,0.00023588,2]
[316299187,1709429442919,-709.99,0.00023588,2]
[316299189,1709429442930,-500.0,0.00023588,2]
[316299191,1709429442940,-500.0,0.00023588,2]
[316299193,1709429442949,-500.0,0.00023588,2]
[316299194,1709429442959,-500.0,0.00023588,2]
[316299196,1709429442969,-500.0,0.00023588,2]
[316299200,1709429442979,-554.6853389,0.00023588,2]
[316299204,1709429442990,-500.0,0.00023588,2]
[316299207,1709429443000,-2648.17,0.00023588,2]
[316299209,1709429443010,-500.0,0.00023588,2]
[316299212,1709429443030,-500.68691209,0.00023588,2]
[316299214,1709429443045,-500.0,0.00023588,2]
[316299216,1709429443057,-500.0,0.00023588,2]
[316299217,1709429443069,-500.0,0.00023588,2]
[316299219,1709429443081,-500.0,0.00023588,2]
[316299221,1709429443093,-500.0,0.00023588,2]
[316299224,1709429443105,-500.0,0.00023588,2]
[316299226,1709429443117,-228.26555443,0.00023588,2]
[316299230,1709429443277,-238.65701684,0.00023588,2]
[316299231,1709429443287,-20.98298316,0.00023589,2]
[316299232,1709429443599,-479.01701684,0.00023589,2]
[316299233,1709429443608,-501.87588497,0.00023589,2]
[316299234,1709429443618,-500.0,0.00023589,2]
[316299235,1709429443627,-500.0,0.00023589,2]
[316299236,1709429443636,-500.0,0.00023589,2]
[316299237,1709429443646,-500.0,0.00023589,2]
[316299238,1709429443656,-500.0,0.00023589,2]
[316299239,1709429443665,-500.0,0.00023589,2]
[316299240,1709429443675,-503.86862046,0.00023589,2]
[316299241,1709429443684,-500.0,0.00023589,2]
[316299242,1709429443694,-500.0,0.00023589,2]
[316299243,1709429443703,-500.0,0.00023589,2]
[316299244,1709429443712,-500.0,0.00023589,2]
[316299245,1709429443722,-500.0,0.00023589,2]
[316299246,1709429443731,-500.0,0.00023589,2]
[316299247,1709429443740,-1005.02,0.00023589,2]
[316299248,1709429443750,-709.99,0.00023589,2]
[316299249,1709429443759,-500.0,0.00023589,2]
[316299250,1709429443769,-500.0,0.00023589,2]
[316299251,1709429443778,-500.0,0.00023589,2]
[316299252,1709429443792,-500.0,0.00023589,2]
[316299253,1709429443802,-500.0,0.00023589,2]
[316299254,1709429443811,-500.0,0.00023589,2]
[316299255,1709429443820,-881.78,0.00023589,2]
[316299256,1709429443829,-500.0,0.00023589,2]
[316299257,1709429443838,-2648.17,0.00023589,2]
[316299258,1709429443847,-500.0,0.00023589,2]
[316299259,1709429443856,-90.3238729,0.00023589,2]
[316299260,1709429443868,-409.6761271,0.00023589,2]
[316299261,1709429443877,-500.0,0.00023589,2]
[316299262,1709429443886,-91.6205609,0.00023589,2]
[316299263,1709429443898,-408.3794391,0.00023589,2]
[316299264,1709429443907,-500.0,0.00023589,2]
[316299265,1709429443916,-500.0,0.00023589,2]
[316299266,1709429443925,-502.25007495,0.00023589,2]
[316299267,1709429443935,-500.0,0.0002359,2]
[316299268,1709429443944,-153.0,0.000236,2]
[316299269,1709429443953,-153.0,0.000236,2]
[316299270,1709429443962,-153.0,0.000236,2]
[316299271,1709429443971,-153.0,0.000236,2]
[316299272,1709429443980,-153.0,0.000236,2]
[316299273,1709429443989,-387.8836946,0.000236,2]
[316299274,1709429443998,-306.0,0.000236,2]
[316299275,1709429444006,-200.7312975,0.000236,2]
[316299276,1709429444016,-388.4847455,0.000236,2]
[316299277,1709429444024,-153.0,0.000236,2]
[316299278,1709429444035,-200.7312975,0.000236,2]
[316299279,1709429444044,-153.0,0.000236,2]
[316299280,1709429444053,-153.0,0.000236,2]
[316299281,1709429444062,-153.0,0.000236,2]
[316299282,1709429444071,-153.0,0.000236,2]
[316299283,1709429444080,-200.7312975,0.000236,2]
[316299284,1709429444091,-153.0,0.000236,2]
[316299285,1709429444100,-153.0,0.000236,2]
[316299286,1709429444110,-200.7312975,0.000236,2]
[316299287,1709429444119,-153.0,0.000236,2]
[316299288,1709429444128,-153.0,0.000236,2]
[316299289,1709429444138,-500.0,0.00023687,2]
[316299290,1709429444147,-500.0,0.00023687,2]
[316299291,1709429444156,-500.0,0.00023687,2]
[316299292,1709429444169,-709.99,0.00023687,2]
[316299293,1709429444178,-500.0,0.00023687,2]
[316299294,1709429444187,-500.0,0.00023687,2]
[316299295,1709429444197,-500.0,0.00023688,2]
[316299296,1709429444207,-500.0,0.00023688,2]
[316299297,1709429444217,-500.0,0.00023688,2]
[316299298,1709429444226,-500.0,0.00023688,2]
[316299299,1709429444235,-500.0,0.00023688,2]
[316299300,1709429444245,-214.22178809,0.00023688,2]
[316299301,1709429444254,-500.0,0.00023688,2]
[316299302,1709429444263,-500.0,0.00023688,2]
[316299303,1709429444273,-500.0,0.00023688,2]
[316299304,1709429444282,-500.0,0.00023688,2]
[316299305,1709429444292,-263.23262185,0.00023688,2]
[316299306,1709429444301,-500.0,0.00023688,2]
[316299307,1709429444310,-501.09881645,0.00023688,2]
[316299308,1709429444319,-501.27258164,0.00023688,2]
[316299309,1709429444328,-500.0,0.00023688,2]
[316299310,1709429444337,-500.0,0.00023688,2]
[316299311,1709429444345,-500.0,0.00023688,2]
[316299312,1709429444354,-500.5519328,0.00023688,2]
[316299313,1709429444364,-500.0,0.00023688,2]
[316299314,1709429444373,-500.0,0.00023688,2]
[316299315,1709429444382,-500.87900655,0.00023688,2]
[316299316,1709429444392,-500.0,0.00023688,2]
[316299317,1709429444401,-500.0,0.00023688,2]
[316299318,1709429444410,-500.0,0.00023688,2]
[316299319,1709429444419,-500.0,0.00023688,2]
[316299320,1709429444428,-500.0,0.00023688,2]
[316299321,1709429444437,-500.0,0.00023688,2]
[316299322,1709429444447,-2648.17,0.00023688,2]
[316299323,1709429444457,-500.0,0.00023688,2]
[316299324,1709429444466,-521.99192232,0.00023688,2]
[316299325,1709429444475,-500.0,0.00023688,2]
[316299326,1709429444485,-500.0,0.00023688,2]
[316299327,1709429444494,-500.0,0.00023688,2]
[316299328,1709429444503,-500.0,0.00023688,2]
[316299329,1709429444512,-500.0,0.00023688,2]
[316299330,1709429444521,-500.0,0.00023688,2]
[316299331,1709429444530,-187.33386723,0.00023688,2]
[316299332,1709429444540,-194.64739125,0.00023688,2]
[316299333,1709429444551,-368.15377268,0.00023688,2]
[316299334,1709429444560,-500.70085375,0.00023688,2]
[316299335,1709429444569,-500.74052829,0.00023688,2]
[316299336,1709429444579,-500.0,0.00023688,2]
[316299337,1709429444588,-585.92612192,0.00023688,2]
[316299338,1709429444597,-501.09747563,0.00023688,2]
[316299339,1709429444607,-500.0,0.00023689,2]
[316299340,1709429444617,-153.0,0.000237,2]
[316299341,1709429444626,-153.0,0.000237,2]
[316299342,1709429444635,-153.0,0.000237,2]
[316299343,1709429444644,-153.0,0.000237,2]
[316299344,1709429444654,-200.7312975,0.000237,2]
[316299345,1709429444664,-396.1936975,0.000237,2]
[316299346,1709429444673,-278.2948905,0.000237,2]
[316299347,1709429444682,-200.7312975,0.000237,2]
[316299348,1709429444692,-154.8608374,0.000237,2]
[316299349,1709429444701,-204.4811044,0.000237,2]
[316299350,1709429444710,-278.99304029,0.00023712,2]
[316299351,1709429444719,-278.99304026,0.00023759,2]
[316299352,1709429444728,-154.81637835,0.00023781,2]
[316299353,1709429444737,-26839.12061165,0.00023788,7]
[316299354,1709429444746,-500.0,0.00023798,2]
[316299355,1709429444755,-500.0,0.00023799,2]
[316299356,1709429444764,-500.0,0.00023799,2]
[316299357,1709429444773,-644.43,0.00023799,2]
[316299358,1709429444782,-500.0,0.00023799,2]
[316299359,1709429444792,-500.0,0.00023799,2]
[316299360,1709429444802,-500.0,0.00023799,2]
[316299361,1709429444811,-500.0,0.00023799,2]
[316299362,1709429444821,-500.0,0.00023799,2]
[316299363,1709429444830,-500.0,0.00023799,2]
[316299364,1709429444839,-500.0,0.00023799,2]
[316299365,1709429444848,-500.0,0.00023799,2]
[316299366,1709429444857,-500.0,0.00023799,2]
[316299367,1709429444866,-500.0,0.00023799,2]
[316299368,1709429444875,-500.0,0.00023799,2]
[316299369,1709429444884,-500.0,0.00023799,2]
[316299370,1709429444893,-881.78,0.00023799,2]
[316299371,1709429444902,-881.78,0.00023799,2]
[316299372,1709429444912,-881.78,0.00023799,2]
[316299373,1709429444921,-500.0,0.00023799,2]
[316299374,1709429444930,-509.34,0.00023799,2]
[316299375,1709429444940,-500.0,0.00023799,2]
[316299376,1709429444949,-500.0,0.00023799,2]
[316299377,1709429444958,-500.0,0.00023799,2]
[316299378,1709429444967,-500.0,0.00023799,2]
[316299379,1709429444976,-500.0,0.00023799,2]
[316299380,1709429444986,-500.0,0.00023799,2]
[316299381,1709429444995,-500.0,0.00023799,2]
[316299382,1709429445003,-500.0,0.00023799,2]
[316299383,1709429445012,-500.0,0.00023799,2]
[316299384,1709429445021,-500.0,0.00023799,2]
[316299385,1709429445030,-217.92,0.00023799,2]
[316299386,1709429445040,-500.0,0.00023799,2]
[316299387,1709429445049,-500.0,0.00023799,2]
[316299388,1709429445059,-500.0,0.00023799,2]
[316299389,1709429445068,-500.0,0.00023799,2]
[316299390,1709429445077,-500.0,0.00023799,2]
[316299391,1709429445086,-500.0,0.00023799,2]
[316299392,1709429445095,-500.0,0.00023799,2]
[316299393,1709429445104,-500.0,0.00023799,2]
[316299394,1709429445113,-500.0,0.00023799,2]
[316299395,1709429445123,-500.0,0.00023799,2]
[316299396,1709429445132,-500.0,0.00023799,2]
[316299397,1709429445142,-500.0,0.00023799,2]
[316299398,1709429445151,-500.0,0.00023799,2]
[316299399,1709429445160,-500.0,0.00023799,2]
[316299400,1709429445169,-552.65582347,0.00023799,2]
[316299401,1709429445181,-89199.08335519,0.000238,2]
[316299424,1709429446582,-200.7312976,0.000236,2]
[316299425,1709429446592,-52.4587024,0.000238,2]
[316299433,1709429448103,-266.79324148,0.000238,2]
[316299454,1709430364999,-732.0,0.00024,30]
[316299539,1709430638425,-624.10217858,0.00021514,2]
[316299540,1709430638434,-448.34455358,0.000219,2]
[316299541,1709430638443,-419.22414573,0.00022178,2]
[316299599,1709430641473,-833.98622107,0.00022178,2]
[316299601,1709430641483,-163.6441897,0.00022451,2]
[316299603,1709430641492,-620.20510893,0.0002259,2]
[316299605,1709430641502,-562.42565399,0.00022815,2]
[316299607,1709430641512,-5000.0,0.00022824,5]
[316299609,1709430641521,-155.0,0.00022898,2]
[316299611,1709430641530,-153.0,0.000229,2]
[316299613,1709430641541,-153.0,0.00022978,2]
[316299615,1709430641550,-500.2282752,0.00023,2]
[316299617,1709430641560,-153.0,0.00023078,2]
[316299618,1709430641570,-201.4051177,0.00023178,2]
[316299620,1709430641579,-153.0,0.00023178,2]
[316299622,1709430641590,-200.7739089,0.00023178,2]
[316299624,1709430641599,-153.0,0.00023178,2]
[316299626,1709430641609,-200.7739089,0.00023178,2]
[316299628,1709430641618,-200.7739089,0.00023178,2]
[316299630,1709430641628,-200.7739089,0.00023178,2]
[316299632,1709430641638,-200.7739089,0.00023178,2]
[316299634,1709430641646,-200.7739089,0.00023178,2]